Cogmind - Beta 16 @@@ ROGUE MODE // 2025.10.22 @ 20:01:16 Player: Cheeseinator Result: Destroyed by P-60 Hacker with Shock Rifle Performance ------------- Evolutions (4) 2000 Regions Visited (5) 1000 Robots Destroyed (20) 100 Value Destroyed (514) 514 Prototype IDs (2) 40 Alien Tech Used (0) 0 Bonus (0) 0 TOTAL SCORE: 3654 Bonus ------- None Cogmind --------- Core Integrity 0/850 Matter 103/300 Energy 97/100 System Corruption 10% Temperature Cool (0) Movement Core (150) Ox2 Location -6/Factory Parts ------- > --- POWER (2) -------- (None) > --- PROPULSION (5) --- (None) > --- UTILITY (6) ------ Improved Signal Interpreter Advanced Terrain Scan Processor > --- WEAPON (2) ------- Autogun Coil Gun > --- INVENTORY (5) ---- Terrain Scanner Peak State ------------ > --- POWER ------------ Light Nuclear Core Light Nuclear Core > --- PROPULSION ------- VTOL Module VTOL Module VTOL Module > --- UTILITY ---------- Improved Signal Interpreter Terrain Scanner Improved Terrain Scanner Terrain Scan Processor Seismic Detector Recoil Stabilizer > --- WEAPON ----------- Advanced Beam Rifle Advanced Beam Rifle > --- INVENTORY -------- Light Ion Engine Nuclear Core Gatling Laser [Rating: 33] Favorites ----------- Power Light Nuclear Core Engine Light Ion Engine Power Core Light Nuclear Core Propulsion VTOL Module Treads Spiked Treads Wheel Compact Wheel Flight Unit VTOL Module Utility Improved Signal Interpreter Device Improved Sensor Array Processor Improved Signal Interpreter Weapon Advanced Beam Rifle Energy Gun Advanced Beam Rifle Energy Cannon Cooled Particle Cannon Ballistic Gun High-powered Shotgun Slashing Weapon Greatsword Build | -11 -10 -10 -8 -7 -6 ------- Run | Yrd Mat Sub Mat Fac Fac Slots Evolved 8 | . . . 4 2 2 Power 1 | . . . 1 . . Propulsion 3 | . . . 3 . . Utility 4 | . . . . 2 2 Weapon . | . . . . . . Parts Attached 50 | . 5 8 9 22 6 Power 8 | . 1 1 . 6 . Engine 6 | . 1 1 . 4 . Core 2 | . . . . 2 . Reactor . | . . . . . . Propulsion 14 | . 2 5 . 6 1 Treads 1 | . . 1 . . . Leg . | . . . . . . Wheel 8 | . 2 3 . 3 . Hover . | . . . . . . Flight 5 | . . 1 . 3 1 Utility 10 | . . 1 3 4 2 Device 6 | . . 1 2 2 1 Storage . | . . . . . . Processor 4 | . . . 1 2 1 Hackware . | . . . . . . Protection . | . . . . . . Artifact . | . . . . . . Weapon 18 | . 2 1 6 6 3 Energy Gun 10 | . 2 . 4 4 . Energy Cannon 1 | . . . . . 1 Ballistic Gun 6 | . . 1 2 1 2 Ballistic Cannon . | . . . . . . Launcher . | . . . . . . Special Weapon . | . . . . . . Impact Weapon . | . . . . . . Slashing Weapon 1 | . . . . 1 . Piercing Weapon . | . . . . . . Special Melee Weapon . | . . . . . . Unidentified Prototypes 2 | . . . 1 . 1 Parts Lost 25 | . . 6 1 3 15 Power 5 | . . 1 . 1 3 Propulsion 7 | . . 1 1 1 4 Utility 6 | . . 1 . 1 4 Weapon 7 | . . 3 . . 4 Highest Loss Streak 15 | . . 3 1 1 15 To Critical Strikes . | . . . . . . Average Backups 4 | . 1 3 4 4 3 Power . | . . . . 1 1 Propulsion . | . 1 3 2 . . Utility . | . . . . 1 1 Weapon 1 | . . . 1 1 1 Tool/Special . | . . . . . . Unused Backups 1 | . . . . . 1 Power 1 | . . . . . 1 Propulsion . | . . . . . . Utility . | . . . . . . Weapon . | . . . . . . Tool/Special . | . . . . . . Average Slot Usage (%) 62 | . 50 49 50 71 63 Engine 4 | . 4 6 3 5 . Core 4 | . . . . 6 9 Treads 2 | . . 3 8 . . Wheel 7 | . 24 7 . 13 . Flight 9 | . . 4 8 10 14 Device 9 | . . 3 8 10 15 Processor 9 | . . . 7 11 12 Energy Gun 9 | . 20 16 6 9 9 Ballistic Gun 2 | . . 6 8 1 . Peak Build Rating 33 | . 5 9 20 28 33 Average Rating 18 | . 3 4 15 22 26 On Entrance 6 | . . 5 1 7 28 Avg Prop Armor Cover (%) 3 | . . . 3 . . Naked Turns 22 | . 8 14 . . . Heaviest Build 17 | . 5 10 11 16 17 Greatest Support 62 | 3 32 32 20 62 12 Greatest Overweight (x) 4 | . . . 2 4 2 Average Overweight (x) . | . . . . . . Largest Inventory Capacity 5 | 5 5 5 5 5 5 Average Capacity 5 | 5 5 5 5 5 5 Most Carried 5 | . 3 5 5 5 5 Average Carried 4 | . 1 3 4 4 3 Final Capacity 5 | 5 5 5 5 5 5 Final Carried 5 | . 3 5 5 4 1 Class Distribution -------------------- 48% | Mutant 44% | Scavenger-Mutant 4% | Scavenger-Skirmisher Dominant Class ---------------- Mutant | -10/Materials Mutant | -10/Subcaves Mutant | -8/Materials Scavenger-Mutant | -7/Factory Scavenger-Mutant | -6/Factory Resources | -11 -10 -10 -8 -7 -6 ----------- Run | Yrd Mat Sub Mat Fac Fac Matter Collected 698 | . 42 162 . 469 25 Remotely . | . . . . . . Salvage Created 554 | . 11 68 . 274 201 Parts 48 | . 4 12 . 23 9 Haulers Intercepted . | . . . . . . Recyclers Shooed . | . . . . . . Parts Field Recycled . | . . . . . . Retrieved Matter . | . . . . . . Parts Self-Destructed 11 | . . 11 . . . Prevented . | . . . . . . Parts Restored . | . . . . . . Kills | -11 -10 -10 -8 -7 -6 ------- Run | Yrd Mat Sub Mat Fac Fac Combat Hostiles Destroyed 15 | . . 4 . 5 6 Melee 2 | . . . . 2 . Guns 11 | . . 4 . 3 4 Classes Destroyed 8 | . 1 1 . 5 1 Worker 1 | . 1 . . . . Builder 2 | . . . . 2 . Tunneler 1 | . . . . 1 . Recycler 1 | . . . . 1 . Swarmer 11 | . . 4 . 3 4 Grunt 2 | . . . . . 2 Sentry 1 | . . . . 1 . Programmer 1 | . . . . 1 . Best Kill Streak 4 | . 1 4 . 4 2 Combat Bots Only 4 | . . 4 . 3 2 Max Kills in Single Turn 1 | . 1 1 . 1 1 Gunslinging . | . . . . . . Exploded . | . . . . . . Melee 1 | . . . . 1 . Uniques/NPCs Destroyed . | . . . . . . Combat | -11 -10 -10 -8 -7 -6 -------- Run | Yrd Mat Sub Mat Fac Fac Hostile Shots Fired 307 | 1 15 43 20 57 171 Missed 105 | . 5 11 4 21 64 Hits 202 | 1 10 32 16 36 107 Projectile 202 | 1 10 32 16 36 107 AOE 3 | . . 3 . . . Critical Strikes 7 | . . . . 1 6 Damage Taken 3203 | 17 146 444 262 683 1651 Core 1177 | 17 16 108 53 129 854 Absorbed by Shields . | . . . . . . Core Remaining (%) 76 | 93 . 43 90 81 . Volleys Fired 61 | . 11 9 4 13 24 Largest 2 | . 2 2 2 2 2 Hottest 122 | . 80 80 122 122 122 Shots Fired 104 | . 22 16 8 23 35 Gun 100 | . 22 16 8 23 31 Cannon 4 | . . . . . 4 Launcher . | . . . . . . Special . | . . . . . . Kinetic 24 | . . 2 6 6 10 Thermal 80 | . 22 14 2 17 25 Explosive . | . . . . . . Electromagnetic . | . . . . . . Robot Hit Streak 15 | . 15 3 3 3 12 Robot Miss Streak 6 | . 1 3 2 6 4 Penetration Max 1 | . . . . . 1 Secondary Targets 2 | . . . . 1 1 Max Gunslinging Chain 1 | . . . . 1 1 Shots Hit Robots 76 | . 20 6 5 19 26 Core Hits 32 | . 2 4 1 15 10 Critical Kills . | . . . . . . Critical Parts Destroyed . | . . . . . . Critical Strikes 2 | . . . . 1 1 Burn 1 | . . . . . 1 Sever 1 | . . . . 1 . Melee Attacks 9 | . . . . 9 . Impact . | . . . . . . Slashing 9 | . . . . 9 . Piercing . | . . . . . . Sneak Attacks . | . . . . . . Combat Hostiles . | . . . . . . Follow-up Attacks . | . . . . . . Damage Inflicted 1477 | 11 195 83 87 469 632 Guns 1176 | . 195 83 85 261 552 Cannons 80 | . . . . . 80 Explosions . | . . . . . . Melee 201 | . . . . 201 . Ramming 20 | 11 . . 2 7 . Kinetic 303 | . . 18 85 48 152 Thermal 953 | . 195 65 . 213 480 Explosive . | . . . . . . Electromagnetic . | . . . . . . Impact . | . . . . . . Slashing 201 | . . . . 201 . Piercing . | . . . . . . Highest Corruption 8 | . 2 2 . 2 8 Average Corruption 1 | . 2 2 . 1 3 Corruption Purged . | . . . . . . Corruption Blocked . | . . . . . . Effects 5 | . 1 2 . 2 . Message Errors 2 | . . 2 . . . Matter Fused 2 | . 1 . . 1 . Energy Discharges 1 | . . . . 1 . Overload Shots . | . . . . . . Overflow Damage . | . . . . . . Projectiles . | . . . . . . Explosions . | . . . . . . Melee . | . . . . . . Knockbacks . | . . . . . . Impact . | . . . . . . Kinetic . | . . . . . . Secondary . | . . . . . . Self-Inflicted Damage 147 | 5 . . . 142 . Shots 3 | . . . . 3 . Rammed 6 | 1 . . 1 4 . Targets Rammed 6 | 1 . . 1 4 . Kicked . | . . . . . . Crushed . | . . . . . . Highest Temperature 473 | . 222 . 42 207 473 Average Temperature 151 | . 92 . 17 62 295 Received Heat Transfer 555 | 6 87 36 144 6 276 Effects 6 | . . . . . 6 Shutdowns 3 | . . . . . 3 Matter Decay 1 | . . . . . 1 Damage (minor) 1 | . . . . . 1 Damage (major) 1 | . . . . . 1 Siege Activations . | . . . . . . Martial Activations . | . . . . . . Shielding Activations . | . . . . . . Robots Disrupted . | . . . . . . Combat Hostiles . | . . . . . . Robots Corrupted . | . . . . . . Combat Hostiles . | . . . . . . Parts Fried . | . . . . . . Impact Corruptions . | . . . . . . Robots Melted 2 | . . . . . 2 Combat Hostiles 2 | . . . . . 2 Parts Melted 2 | . . . . 1 1 Heat Transferred 2066 | . 450 150 . 435 1031 Parts Sabotaged . | . . . . . . Parts Stolen . | . . . . . . Parts Stripped . | . . . . . . Power Chain Reactions 1 | . . . . 1 . Alert | -11 -10 -10 -8 -7 -6 ------- Run | Yrd Mat Sub Mat Fac Fac Maximum Alert Level . | . . . . . . Low Security (%) 100 | 100 100 . 100 100 100 Level 1 . | . . . . . . Level 2 . | . . . . . . Level 3 . | . . . . . . Level 4 . | . . . . . . Level 5 . | . . . . . . High Security . | . . . . . . Max Security . | . . . . . . Peak Influence 143 | . 5 . 28 123 143 Initial 28 | . . . 28 . . Average 17 | . . . 2 29 14 Influence Increases 769 | . 5 215 15 228 306 Destroy 0b10 Robot/C 300 | . . 80 . 100 120 Destroy 0b10 Robot/NC 25 | . 5 . . 20 . Destroy Leader 50 | . . . . 30 20 Successful Hack 2 | . . . . 2 . Disable Machine 45 | . . . 15 30 . Destroy Structure 17 | . . . . 16 1 Lose Combat Pursuer 330 | . . 135 . 30 165 Influence Decreases 634 | . 5 160 70 228 171 Entered New Map 27 | . . . 27 . . Time Decay 414 | . 5 100 43 208 58 Lost Part 193 | . . 60 . 20 113 Squads Dispatched 5 | . . . 2 2 1 Investigation . | . . . . . . Extermination 3 | . . . . 2 1 Reinforcement 2 | . . . 2 . . Assault . | . . . . . . Garrison . | . . . . . . Intercept . | . . . . . . Searches Triggered . | . . . . . . Construction Impeded . | . . . . . . Haulers Reinforced . | . . . . . . Active Scanning Responses . | . . . . . . Cargo Convoy Interrupts . | . . . . . . Stealth | -11 -10 -10 -8 -7 -6 --------- Run | Yrd Mat Sub Mat Fac Fac Distress Signals 2 | . . . . 2 . Communications Jammed . | . . . . . . Distress Signals . | . . . . . . Times Spotted 58 | 1 3 12 3 16 23 Peak Tracking Total 8 | 1 3 6 3 4 8 Tactical Retreats 8 | . . 2 . 2 4 Traps | -11 -10 -10 -8 -7 -6 ------- Run | Yrd Mat Sub Mat Fac Fac Traps Triggered 7 | . 1 . . 4 2 Indirectly . | . . . . . . Trap Hack Attempts . | . . . . . . Triggered . | . . . . . . Disarmed . | . . . . . . Reprogrammed . | . . . . . . Reused . | . . . . . . Traps Extracted . | . . . . . . Installed . | . . . . . . Triggered . | . . . . . . Machines | -11 -10 -10 -8 -7 -6 ---------- Run | Yrd Mat Sub Mat Fac Fac Machines Disabled 3 | . . . 1 2 . Max in Single Turn 2 | . . . 1 2 . Machines Repaired . | . . . . . . Machines Dismantled . | . . . . . . Machines Sabotaged . | . . . . . . Overloaded Fab Kills . | . . . . . . Hacking | -11 -10 -10 -8 -7 -6 --------- Run | Yrd Mat Sub Mat Fac Fac Machines Accessed 1 | . . . . 1 . Terminals . | . . . . . . Fabricators 1 | . . . . 1 . Repair Stations . | . . . . . . Recycling Units . | . . . . . . Scanalyzers . | . . . . . . Garrison Access . | . . . . . . Total Hacks 3 | . . . . 3 . Successful 3 | . . . . 3 . Failed . | . . . . . . Catastrophic . | . . . . . . Database Lockouts . | . . . . . . Manual 3 | . . . . 3 . Terminals . | . . . . . . Fabricators 3 | . . . . 3 . Repair Stations . | . . . . . . Recycling Units . | . . . . . . Scanalyzers . | . . . . . . Garrison Access . | . . . . . . Terminal Hacks . | . . . . . . Fabricator Hacks 1 | . . . . 1 . Network Status 1 | . . . . 1 . Repair Station Hacks . | . . . . . . Recycling Unit Hacks . | . . . . . . Scanalyzer . | . . . . . . Garrison Access Hacks . | . . . . . . Unauthorized Hacks 1 | . . . . 1 . Terminals . | . . . . . . Fabricators 1 | . . . . 1 . Liberate 1 | . . . . 1 . Repair Stations . | . . . . . . Recycling Units . | . . . . . . Scanalyzers . | . . . . . . Garrison Access . | . . . . . . Data Cores Recovered . | . . . . . . Used . | . . . . . . Hacking Detections 1 | . . . . 1 . Full Trace Events . | . . . . . . Feedback Events . | . . . . . . Feedback Blocked . | . . . . . . Robot Schematics Acquired . | . . . . . . Robots Built . | . . . . . . Authchips . | . . . . . . Time . | . . . . . . Total Robot Build Rating . | . . . . . . Part Schematics Acquired . | . . . . . . Parts Built . | . . . . . . Authchips . | . . . . . . Time . | . . . . . . Total Part Build Rating . | . . . . . . Part Studies Acquired . | . . . . . . Parts Repaired . | . . . . . . Time . | . . . . . . Parts Recycled . | . . . . . . Recycled Matter . | . . . . . . Retrieved Matter . | . . . . . . Retrieved Components . | . . . . . . Parts Scanalyzed . | . . . . . . Part Schematics Acquired . | . . . . . . Parts Damaged . | . . . . . . Bothacking | -11 -10 -10 -8 -7 -6 ------------ Run | Yrd Mat Sub Mat Fac Fac Used RIF Installer . | . . . . . . Robots Hacked . | . . . . . . Non-combat . | . . . . . . Combat . | . . . . . . Robot Hacks Applied . | . . . . . . Relay Couplers Released . | . . . . . . Fabnet Peak Effective % . | . . . . . . Robots Rewired . | . . . . . . Allies Hacked . | . . . . . . Hacks Repelled . | . . . . . . Allies | -11 -10 -10 -8 -7 -6 -------- Run | Yrd Mat Sub Mat Fac Fac Total Allies . | . . . . . . Largest Group . | . . . . . . Highest-Rated Group . | . . . . . . Highest-Rated Ally . | . . . . . . Total Orders . | . . . . . . Ally Attacks . | . . . . . . Total Damage . | . . . . . . Kills . | . . . . . . Allies Corrupted . | . . . . . . Allies Melted . | . . . . . . Intel | -11 -10 -10 -8 -7 -6 ------- Run | Yrd Mat Sub Mat Fac Fac Active Infowar (turns) 1975 | . . 60 440 1031 444 Optics 60 | . . 60 . . . Sensors 958 | . . . 440 518 . Terrain 1037 | . . . . 593 444 Seismic 791 | . . . . 403 388 Robot Analysis Total . | . . . . . . Derelict Logs Recovered . | . . . . . . Drone Launches . | . . . . . . Drone Recoveries . | . . . . . . Exploration | -11 -10 -10 -8 -7 -6 ------------- Run | Yrd Mat Sub Mat Fac Fac Turns Passed 2482 | 16 142 222 542 1031 529 Spaces Moved 1908 | 32 106 264 220 871 415 Core 263 | 32 15 28 20 3 165 Treads 235 | . . 35 200 . . Legs . | . . . . . . Wheels 606 | . 91 34 . 481 . Hover . | . . . . . . Flight 804 | . . 167 . 387 250 Fastest Speed 29 | 50 50 40 50 29 29 Average Speed 96 | 50 92 63 150 99 83 Slowest Speed 275 | 50 100 160 160 275 192 Overloaded Moves . | . . . . . . Propulsion Burnouts . | . . . . . . Robots Hopped 1 | . . . . . 1 Potential Cave-ins . | . . . . . . Cave-ins Triggered . | . . . . . . Exploration Rate (%) 17 | 5 19 15 19 29 15 Regions Visited 5 Branch Regions 1 Pre-discovered Areas . | . . . . . . Known Exits Taken 2 | . . . 1 1 . Unknown Exits Taken 3 | 1 1 1 . . . Scrap Searched 2 | . . 2 . . . Spaces Dug 2 | . . . . 2 . Terrain Destroyed 19 | . . . . 18 1 Melee 2 | . . . . 2 . Projectile 1 | . . . . . 1 AOE 16 | . . . . 16 . Terrain Rammed . | . . . . . . Walls Destroyed . | . . . . . . Machines Disabled . | . . . . . . Actions | -11 -10 -10 -8 -7 -6 --------- Run | Yrd Mat Sub Mat Fac Fac Total 2422 | 32 125 303 422 985 555 Wait 295 | . 1 3 174 23 94 Move 1902 | 32 105 263 219 870 413 Hop 1 | . . . . . 1 Pick Up 14 | . 3 3 3 2 3 Fast Attach 43 | . 5 5 7 16 10 Attach 19 | . . 6 2 5 6 Detach 11 | . . 7 1 1 2 Swap 8 | . . 3 2 3 . Drop 24 | . . 4 9 9 2 Fire 61 | . 11 9 4 13 24 Melee 9 | . . . . 9 . Ram 4 | . . . . 4 . Kick . | . . . . . . Crush 1 | . . . 1 . . Escape Stasis 30 | . . . . 30 . Rewire . | . . . . . . Trap . | . . . . . . Miscellaneous . | . . . . . . Route ------- -11/Scrapyard -10/Materials -10/Subcaves -8/Materials -7/Factory -6/Factory (discovered 1 exit: [*Fac]) History --------- Turn | Location | Event 2 | -11/Scrapyard | Met Revision 17 14 | -11/Scrapyard | Discovered new exit (range 8) 17 | -11/Scrapyard | Entered Materials 152 | -10/Materials | Discovered new exit (range 6) 159 | -10/Materials | Entered Subcaves 259 | -10/Subcaves | Lost 3 parts (1p1n1w) 288 | -10/Subcaves | Shifting Twisted Machinery released Spk. Treads 353 | -10/Subcaves | Disturbed a concealed Subdweller 358 | -10/Subcaves | Core integrity fell below 50% 373 | -10/Subcaves | Shifting Twisted Machinery released Mak. Light Armor Plating 377 | -10/Subcaves | Discovered new exit (range 11) 381 | -10/Subcaves | Entered Materials 381 | -8/Materials | Evolved 4 slots: Power x1, Propulsion x3 386 | -8/Materials | Lost 3 parts (1u2w) 647 | -8/Materials | Build established: Mutant 916 | -8/Materials | Discovered new exit (range 14) 922 | -8/Materials | Identified exit to Factory 923 | -8/Materials | Entered Factory 923 | -7/Factory | Evolved 2 slots: Utility x2 1724 | -7/Factory | Build established: Scavenger-Mutant 1925 | -7/Factory | Discovered new exit (range 13) 1953 | -7/Factory | Identified exit to Factory 1954 | -7/Factory | Entered another Factory area 1954 | -6/Factory | Evolved 2 slots: Utility x2 2389 | -6/Factory | Discovered new exit (range 15) 2397 | -6/Factory | Core integrity fell below 50% 2429 | -6/Factory | Lost 15 parts (3p4n4u4w) 2448 | -6/Factory | Core integrity fell below 20% 2483 | -6/Factory | Destroyed by P-60 Hacker with Shock Rifle Last Messages --------------- 02389_ EXIT=FOUND 02396_ P-60 Hacker resets P-60 Hacker, system corruption cleaned. 02398_ Imp. Terrain Scanner destroyed. 02402_ K-01 Serf cleans the DSF Access. 02418_ K-01 Serf cleans the Manufacturing Mainframe. 02458_ Acquired Coil Gun. 02461_ Slug penetrates Wall. 02465_ Slug penetrates Subcomponent Replicator. 02467_ Slug penetrates Wall. 02469_ P-60 Hacker resets S-27 Virus, system corruption cleaned. 02470_ S-27 Virus destroyed. 02472_ Slug penetrates S-27 Virus. 02472_ S-27 Virus destroyed. 02474_ Slug penetrates P-60 Hacker. 02474_ Slug penetrates Wall. 02479_ Acquired Autogun. [Achievement: Hydra] 02480_ Slug penetrates P-60 Hacker. 02481_ P-60 Hacker resets P-60 Hacker, system corruption cleaned. 02483_ Subcomponent Replicator disabled. Map ----- +----------------------------------------------------+ | ????????????????????????????????????????# | | ????????????????????????????????????????# | | ????????????????????????????????????????# #### | | ????????????????????????????????????????# #??? | | ????????????????????????????????????????# #??? | | ????????????????????????????????????????# +??? | | ????????????????????????????????????????# #??? | | ????????????????????????????????????????# #??? | | ?????????????????????????????????#+#????# #??? | | ?????????????????????????????????# ???# #??? | | ?????????????????????????????????# #### #??? | | ?????????????????????????????????# #??? | | ??????????????????????????????#### #??? | | ????????????????????????????? #??? | | ??????????????????????????????#### #??? | | ?????????????????????????????????# #??? | | ?????????????????????????????????######## #??? | | ????????????????????????????????????????# #??? | | ????????????????????????????????????????# #??? | | ????????????????????????????????????????+ #??? | | ????????????????????????????????????????# #??? | | ????????????????????????????????????????# #??? | | ??????????????##############+##?????????# #??? | | ??????????????# = #?????????# #??? | | ??????????????# =%*p #?????????# ### | | ??????????????# @%p ########### | | ??????????????# "" "" " # ### | | ??????????????# "" "" "" # #??? | | ???????????????* """ """ """ # #??? | | ???????????????? """ """ """ # ###### #??? | | ???????????????? """ """ """ # #????###+###??? | | ??????????????# Y +?????????????? | | ??????????????# # ##?????????????? | | ????????????????#########+##+## #??????????????? | | ?????????????????????????????? #??????????????? | | ????????????????????????????? #??????????????? | | ???????????????????????????? ??????????????? | | ???????????????????????????#########?????????????? | | ?????????????????????????????????????????????????? | | ?????????????????????????????????????????????????? | | ?????????????????????????????????????????????????? | | | | | | | | | | | | | | | | | | | +----------------------------------------------------+ Best States ------------- Heat Dissipation 37 Energy Generation 23 Energy Capacity 220 Matter Stores 300 Matter Capacity 300 Sight Range 21 Robot Scan Range 15 Terrain Scan Range 16 Terrain Scan Density 210 Evasion (%) 64 Recoil Reduction 5 Item Schematics ----------------- None Robot Schematics ------------------ None Fabricated ------------ Nothing Repaired ---------- Nothing Studied --------- None Alien Tech Used ----------------- None Achievements -------------- Hydra Omniscient Cartographer Challenges ------------ None Game ------ Seed PhysicsHeartTube Manual? 0 Play Time 00:25:04 Cumulative 19.6 hours Start 2025.10.22 @ 19:39:36 End 2025.10.22 @ 20:01:16 Sessions 1 Manual Loads 0 Difficulty Rogue Special Mode None Game No. 31 Rogue 14 Adventurer 16 Explorer 1 Win Type - Total 0 Types 0/0/0/0/0/0/0/0/0/0 Lore% 9 Gallery% 23 Achievement% 15 Wizard Run 0 Options --------- Layout 0 ASCII 0 Keyboard 1 Movement Numpad Keybinds 0 Fullscreen 1 Font 18/CogNarrow Map View 76x50 Zoom Use 0% Tactical HUD 1 Map Filters NONE Filters NONE Steam 1 RUN: a65a5d59-2649-4408-a1bc-8d3a4fa61673